bitfinex/quotes_ETHUSD_20230831
["timestamp","ask_amount","ask_price","bid_price","bid_amount"]
[1693502804046,1.55061647,1660.4,1660.1,14.02858]
[1693502804219,0.61944659,1660.3,1660.2,1.402858]
[1693502804422,0.61944659,1660.3,1660.2,5.920378]
[1693502805445,0.61944659,1660.4,1660.2,5.920378]
[1693502806519,1.54861647,1660.4,1660.2,5.920378]
[1693502808354,0.27341428,1660.3,1660.2,5.920378]
[1693502808553,0.27341428,1660.3,1660.2,1.402858]
[1693502808779,0.27341428,1660.3,1660.1,9.51078]
[1693502809061,0.89286087,1660.3,1660.1,9.51078]
[1693502809362,5.41013087,1660.3,1660.1,3.48]
[1693502809524,5.41013087,1660.3,1660.0,4.513]
[1693502809722,5.41013087,1660.3,1660.0,3.0]
[1693502809723,6.34130075,1660.3,1660.0,3.0]
[1693502810119,6.34130075,1660.3,1660.0,7.51806]
[1693502810330,0.89486087,1660.3,1660.0,13.391057]
[1693502810546,0.89486087,1660.3,1660.0,14.904057]
[1693502811227,0.89486087,1660.3,1660.1,1.993]
[1693502811456,0.89486087,1660.3,1660.2,9.03504]
[1693502811457,0.61944659,1660.3,1660.2,9.03504]
[1693502811664,0.92916988,1660.4,1660.2,12.03504]
[1693502811957,0.92916988,1660.4,1660.3,3.0]
[1693502812158,0.92916988,1660.4,1660.3,7.51725]
[1693502812333,0.92916988,1660.4,1660.2,4.51752]
[1693502814039,0.92916988,1660.4,1660.2,5.469041]
[1693502814761,0.92916988,1660.4,1660.2,9.986561]
[1693502816270,0.92916988,1660.4,1660.2,5.469041]
[1693502817154,0.92916988,1660.4,1660.2,9.986561]
[1693502817466,0.92916988,1660.4,1660.2,14.504081]
[1693502817672,0.002,1660.5,1660.3,3.20662255]
[1693502817837,0.93116988,1660.6,1660.4,10.54696]
[1693502818036,0.92916988,1660.6,1660.4,10.54696]
[1693502818938,0.92916988,1660.6,1660.4,9.03396]
[1693502819556,0.92916988,1660.6,1660.4,10.54696]
[1693502819869,0.92916988,1660.6,1660.4,11.901887]
[1693502821348,2.16806306,1660.6,1660.4,11.901887]
[1693502821549,0.62411976,1660.5,1660.4,11.901887]
[1693502821736,1.55328964,1660.6,1660.4,11.901887]
[1693502822371,0.002,1660.7,1660.5,11.329]
[1693502822575,0.62611976,1660.8,1660.6,16.013811]
[1693502822874,0.002,1660.9,1660.8,13.54767]
[1693502823031,0.62411976,1661.0,1660.8,14.02767]
[1693502823230,0.62411976,1661.0,1660.9,10.24486255]
[1693502823560,3.79888964,1661.1,1660.9,10.24486255]
[1693502823756,3.17476988,1661.1,1660.9,10.24486255]
[1693502823966,2.2456,1661.1,1660.9,10.24486255]
[1693502824267,1.03216988,1661.2,1660.9,16.27348255]
[1693502824468,1.03216988,1661.2,1661.0,1.834927]
[1693502824677,1.03016988,1661.2,1661.0,4.99528]
[1693502824837,1.02214978,1661.2,1661.0,4.99528]
[1693502825169,1.02214978,1661.2,1661.0,9.51063]
[1693502825562,0.0929799,1661.2,1661.0,9.51063]
[1693502825948,0.0929799,1661.2,1661.0,4.51528]
[1693502826459,12.9584435,1661.2,1660.7,3.0]
[1693502826769,1.515,1661.1,1660.7,3.0]
[1693502826969,4.5174,1661.0,1660.7,4.51612]
[1693502827770,0.002,1661.0,1660.7,9.03228]
[1693502828139,0.002,1661.0,1660.7,13.54844]
[1693502828340,0.002,1661.0,1660.8,0.48]
[1693502828546,2.2158,1661.1,1660.8,4.99568]
[1693502828747,6.7309,1661.1,1660.8,0.48]
[1693502828963,11.246,1661.1,1660.7,4.51605]
[1693502829248,0.002,1661.0,1660.6,6.02943]
[1693502829557,9.0331,1661.0,1660.6,4.51643]
[1693502829864,0.002,1660.9,1660.5,9.02957]
[1693502830065,13.54916,1660.9,1660.5,3.0]
[1693502830267,0.002,1660.8,1660.4,7.51697]
[1693502830471,9.03404,1660.8,1660.4,7.51697]
[1693502830646,11.3497,1660.9,1660.4,14.901655]
[1693502830978,0.002,1660.8,1660.4,14.901655]
[1693502831379,0.002,1660.8,1660.5,1.513]
[1693502831686,0.002,1660.8,1660.6,1.513]
[1693502831842,0.002,1660.9,1660.7,4.99616]
[1693502832047,0.002,1661.1,1660.7,10.614856]
[1693502832359,0.002,1661.1,1660.7,1.582536]
[1693502832558,0.002,1661.1,1660.7,11.02532]
[1693502833260,0.002,1661.1,1660.7,15.54148]
[1693502833463,0.002,1661.1,1660.9,9.03124]
[1693502833766,2.3120799,1661.2,1660.9,9.03124]
[1693502834576,2.3120799,1661.2,1660.8,7.51577]
[1693502834577,11.3416899,1661.2,1660.8,3.0]
[1693502834792,0.002,1661.1,1660.8,7.51587]
[1693502834950,4.51709,1661.1,1660.8,7.51587]
[1693502835451,0.002,1661.1,1660.9,1.993]
[1693502835648,2.3120799,1661.2,1661.0,4.51535]
[1693502835846,2.3100799,1661.2,1661.0,4.51535]
[1693502836242,0.0929799,1661.2,1661.0,10.584626]
[1693502836579,0.0929799,1661.2,1661.0,6.069276]
[1693502836758,0.0929799,1661.2,1660.9,9.51092]
[1693502836954,0.0949799,1661.2,1660.9,9.51092]
[1693502837743,0.0949799,1661.2,1660.9,14.02654]
[1693502837953,0.2581496,1661.1,1660.9,14.02654]
[1693502838448,0.0949799,1661.2,1660.9,14.02654]
[1693502838673,0.0949799,1661.2,1660.9,16.19190555]
[1693502838873,0.0949799,1661.2,1660.9,11.67628555]
[1693502839071,0.0949799,1661.2,1660.9,9.51092]
[1693502839280,4.6098799,1661.2,1660.9,4.99545]
[1693502841455,0.0949799,1661.2,1660.9,9.51107]
[1693502841650,0.0949799,1661.2,1660.9,11.02407]
[1693502842359,0.0949799,1661.2,1661.0,2.9277433]
[1693502842681,0.0929799,1661.2,1661.1,0.48]
[1693502842883,0.0929799,1661.2,1661.1,6.23890733]
[1693502843580,0.0929799,1661.2,1661.1,10.75398733]
[1693502844354,0.0929799,1661.2,1661.1,6.23890733]
[1693502845073,0.0929799,1661.2,1661.1,10.75398733]
[1693502845467,0.0929799,1661.2,1661.1,18.26906733]
[1693502846992,0.0929799,1661.2,1661.1,13.75398733]
[1693502847175,0.0929799,1661.2,1661.1,4.72382733]
[1693502847379,0.0929799,1661.2,1661.1,4.99508]
[1693502847580,0.0929799,1661.2,1661.1,0.48]
[1693502848387,9.1225799,1661.2,1660.8,4.51588]
[1693502848587,9.1225799,1661.2,1660.7,4.51601]
[1693502848588,0.002,1661.1,1660.7,4.51601]
[1693502848769,4.51721,1661.1,1660.8,3.0]
[1693502849176,9.03242,1661.1,1660.8,3.0]
[1693502849504,10.39639899,1661.1,1660.7,3.0]
[1693502849675,10.39439899,1661.1,1660.7,7.51615]
[1693502849882,0.002,1661.0,1660.7,7.51615]
[1693502850302,0.002,1661.0,1660.8,9.2637433]
[1693502850505,0.002,1661.1,1660.9,9.95761433]
[1693502850667,0.0949799,1661.2,1661.0,2.9277433]
[1693502850873,0.0929799,1661.2,1661.1,4.51508]
[1693502851167,12.0503232,1661.2,1660.7,4.51601]
[1693502851371,5.0467433,1661.1,1660.5,4.51665]
[1693502851571,9.03312,1661.0,1660.6,4.51643]
[1693502851803,0.002,1660.9,1660.6,4.51643]
[1693502852383,0.002,1660.9,1660.6,9.03286]
[1693502852612,12.34037232,1661.1,1660.6,9.03286]
[1693502852613,4.51735,1661.0,1660.6,9.03286]
[1693502852781,0.002,1660.9,1660.6,9.03286]
[1693502852986,0.25971151,1660.9,1660.6,9.03286]
[1693502853186,4.77534151,1660.9,1660.6,4.51643]
[1693502853685,0.25971151,1660.9,1660.6,4.51643]
[1693502854204,0.25971151,1660.9,1660.6,5.871386]
[1693502854986,4.77535151,1660.9,1660.6,5.871386]
[1693502855187,4.77535151,1660.9,1660.6,4.51643]
[1693502855598,0.25971151,1660.9,1660.6,4.51643]
[1693502856207,0.25971151,1660.9,1660.6,9.03286]
[1693502856412,0.25971151,1660.9,1660.7,0.48]
[1693502856599,0.25771151,1660.9,1660.7,4.99615]
[1693502857374,0.25771151,1660.9,1660.7,5.947408]
[1693502859295,0.25771151,1660.9,1660.7,4.99615]
[1693502862529,0.25771151,1660.9,1660.7,9.4368933]
[1693502863326,0.25771151,1660.9,1660.7,20.2890533]
[1693502863503,0.25771151,1660.9,1660.7,24.8052133]
[1693502868635,0.25771151,1660.9,1660.7,18.4692133]
[1693502868833,0.25771151,1660.9,1660.7,20.76776163]
[1693502870734,0.25771151,1660.9,1660.7,27.10376163]
[1693502871238,0.25771151,1660.9,1660.7,11.02531]
[1693502872006,0.25771151,1660.9,1660.7,4.99615]
[1693502872206,0.25771151,1660.9,1660.7,9.51231]
[1693502873129,0.25771151,1660.9,1660.7,4.51615]
[1693502873708,0.25771151,1660.9,1660.6,4.51628]
[1693502873911,6.85038585,1660.9,1660.6,4.51628]
[1693502874337,6.85038585,1660.9,1660.5,9.03316]
[1693502874546,0.002,1660.8,1660.6,0.48]
[1693502874852,2.16806306,1660.8,1660.2,9.03682]
[1693502875147,14.72347697,1660.7,1660.3,0.002]
[1693502875309,1.4723477,1660.6,1660.3,0.002]
[1693502875510,4.51646,1660.6,1660.3,4.51923]
[1693502875842,7.82059697,1660.7,1660.3,9.03448]
[1693502876251,3.30423697,1660.7,1660.3,22.8154733]
[1693502876448,0.24516709,1660.7,1660.5,1.513]
[1693502876645,0.24516709,1660.7,1660.6,11.02586]
[1693502877047,0.24516709,1660.7,1660.6,9.51286]
[1693502877389,0.00041328,1660.7,1660.6,31.85295046]
[1693502877652,0.0929799,1661.2,1660.9,9.336]
[1693502877818,0.0929799,1661.2,1661.0,20.8873933]
[1693502878126,0.0929799,1661.2,1661.1,15.05824]
[1693502878325,0.0929799,1661.2,1661.1,18.53824]
[1693502878730,0.0929799,1661.2,1661.1,12.51016]
[1693502878930,0.0929799,1661.2,1661.1,9.51016]
[1693502879254,0.0929799,1661.2,1661.1,0.48]
[1693502879450,0.0929799,1661.2,1660.9,7.379801]
[1693502879625,4.6078799,1661.2,1661.0,0.48]
[1693502879820,4.6078799,1661.2,1660.8,6.02875]
[1693502879821,5.54560631,1661.2,1660.8,6.02875]
[1693502880030,0.93772641,1661.1,1660.7,13.54522]
[1693502880232,0.002,1661.0,1660.8,4.99586]
[1693502880557,0.002,1661.0,1660.7,6.02911]
[1693502880558,4.51536,1661.0,1660.7,4.51614]
[1693502880765,5.45308641,1661.0,1660.7,4.51614]
[1693502880942,4.51736,1661.0,1660.7,4.51614]
[1693502881346,0.002,1661.0,1660.7,4.51614]
[1693502881744,0.002,1661.0,1660.7,6.02914]
[1693502881947,0.002,1661.0,1660.8,1.513]
[1693502882144,3.08902641,1661.1,1660.9,4.51562]
[1693502882374,3.08702641,1661.1,1660.9,4.51562]
[1693502884728,7.60214641,1661.1,1660.8,6.02883]
[1693502885042,12.11926641,1661.1,1660.7,6.50395557]
[1693502885243,0.002,1661.0,1660.7,6.02904]
[1693502885447,0.002,1661.0,1660.7,4.51604]
[1693502885765,0.002,1661.0,1660.6,4.51628]
[1693502885766,5.45513641,1661.0,1660.6,4.51628]
[1693502886076,4.51595,1660.8,1660.5,3.47182282]
[1693502886379,4.51595,1660.8,1660.5,0.47182282]
[1693502886675,4.51595,1660.8,1660.4,10.54668]
[1693502886831,4.51595,1660.8,1660.4,12.986861]
[1693502887035,9.0319,1660.8,1660.4,8.470011]
[1693502887425,9.0319,1660.8,1660.5,0.48]
[1693502889491,13.54785,1660.8,1660.3,9.03216]
[1693502889636,10.83784783,1660.8,1660.4,4.99887]
[1693502889837,11.77557424,1660.8,1660.4,4.99687]
[1693502890060,11.77557424,1660.8,1660.4,4.51687]
[1693502890684,11.77557424,1660.8,1660.3,7.51909]
[1693502891016,16.29152424,1660.8,1660.4,0.002]
[1693502891159,1.62915242,1660.7,1660.4,0.002]
[1693502891360,6.14551242,1660.7,1660.4,0.002]
[1693502891572,8.55371242,1660.7,1660.4,0.002]
[1693502891916,15.31327242,1660.7,1660.4,0.002]
[1693502892319,20.76735883,1660.7,1660.4,0.002]
[1693502892466,20.76735883,1660.7,1660.3,0.002]
[1693502892467,2.07673588,1660.6,1660.3,0.002]
[1693502892818,4.51671,1660.5,1660.3,0.002]
[1693502893030,4.51671,1660.5,1660.2,4.51934]
[1693502893325,4.51671,1660.5,1660.2,0.002]
[1693502893326,9.03342,1660.5,1660.2,0.002]
[1693502893662,15.84533,1660.5,1660.2,0.002]
[1693502893924,10.618753,1660.4,1660.1,0.002]
[1693502894061,10.618753,1660.4,1660.0,0.002]
[1693502894261,10.618753,1660.4,1660.0,4.52001]
[1693502894262,12.869853,1660.4,1660.0,4.52001]
[1693502894463,12.869853,1660.4,1660.1,0.002]
[1693502895323,17.387083,1660.4,1660.0,0.002]
[1693502898813,1.7387083,1660.3,1660.0,0.002]
[1693502899019,4.51752,1660.2,1660.0,0.002]
[1693502899172,4.51752,1660.2,1659.9,9.03333]
[1693502901903,9.03519,1660.2,1659.9,0.002]
[1693502902114,13.55286,1660.2,1659.9,0.002]
[1693502902317,4.51807,1660.0,1659.9,0.002]
[1693502902468,9.03614,1660.0,1659.7,0.002]
[1693502903009,9.03614,1660.0,1659.7,3.002]
[1693502903769,4.51807,1660.0,1659.7,7.52086]
[1693502903999,4.51807,1660.0,1659.7,4.52086]
[1693502904181,6.0009376,1660.0,1659.7,4.52086]
[1693502905079,10.310566,1660.1,1659.7,4.52086]
[1693502905279,10.310566,1660.1,1659.8,0.002]
[1693502905280,13.47319,1660.1,1659.8,0.002]
[1693502905607,13.47319,1660.1,1659.8,4.5206]
[1693502906104,13.47319,1660.1,1659.8,0.002]
[1693502906413,4.4373,1660.1,1659.7,10.55238]
[1693502906619,2.3257,1660.1,1659.8,11.0322]
[1693502906900,2.3257,1660.1,1659.8,13.190658]
[1693502907307,9.03523,1660.2,1659.8,13.190658]
[1693502907510,9.03524,1660.2,1659.9,0.002]
[1693502909213,13.55294,1660.2,1659.9,0.002]
[1693502909421,1.355294,1660.1,1659.8,0.002]
[1693502909597,4.51807,1660.0,1659.8,0.002]
[1693502909794,4.51807,1660.0,1659.7,6.03364]
[1693502909997,4.51807,1660.0,1659.7,10.55238]
[1693502910405,11.13688,1660.1,1659.7,10.55238]
[1693502910725,11.13688,1660.1,1659.8,4.52052]
[1693502910726,6.61895,1660.1,1659.8,4.52052]
[1693502911819,6.61895,1660.1,1659.8,6.03352]
[1693502912117,4.51754,1660.2,1659.9,0.48]
[1693502912299,4.51754,1660.2,1659.9,5.00026]
[1693502914720,9.03519,1660.2,1659.9,0.482]
[1693502915216,13.55284,1660.2,1659.9,0.002]
[1693502915408,4.5182,1660.0,1659.7,0.002]
[1693502915916,6.7549,1660.0,1659.7,0.002]
[1693502916435,11.2731,1660.0,1659.7,0.002]
[1693502916582,11.2731,1660.0,1659.6,8.56855519]
[1693502916788,13.4528,1660.0,1659.7,0.002]
[1693502917030,15.3854104,1660.0,1659.7,0.002]
[1693502918307,15.3854104,1660.0,1659.7,4.52084]
[1693502918636,10.8672104,1660.0,1659.7,4.52084]
[1693502918944,10.8672104,1660.0,1659.7,9.03972]
[1693502918945,4.4164,1660.0,1659.7,9.03972]
[1693502919090,4.51754,1660.2,1659.7,10.55272]
[1693502919442,9.03521,1660.2,1659.8,0.002]
[1693502919585,9.03521,1660.2,1659.8,9.03896]
[1693502919586,4.51754,1660.2,1659.8,9.03896]
[1693502919790,4.51754,1660.2,1659.9,0.002]
[1693502919988,5.864552,1660.2,1659.9,4.52033]
[1693502920321,8.95258,1660.3,1659.9,4.52033]
[1693502920322,2.2431,1660.3,1660.1,10.5486]
[1693502921416,2.2431,1660.3,1660.1,15.0664]
[1693502922241,2.1304,1660.4,1660.1,15.0664]
[1693502922418,2.2175,1660.5,1660.1,15.0684]
[1693502922613,4.3479,1660.5,1660.2,1.98884]
[1693502922815,8.86463,1660.5,1660.2,4.51925]
[1693502923734,4.3479,1660.5,1660.2,4.51925]
[1693502924310,5.29253924,1660.5,1660.2,4.51925]
[1693502926842,9.80927924,1660.5,1660.2,4.51925]
[1693502927706,0.002,1660.9,1660.6,9.336]
[1693502927944,0.002,1660.9,1660.8,6.336]
[1693502928146,0.93680212,1661.0,1660.8,16.9554133]
[1693502928470,0.002,1661.1,1660.9,4.69554133]
[1693502928604,0.0949799,1661.2,1661.0,4.51535]
[1693502928822,0.0929799,1661.2,1661.0,4.51535]
[1693502930783,0.0929799,1661.2,1661.0,9.0307]
[1693502931338,0.0929799,1661.2,1661.0,9.91228402]
[1693502932572,0.0929799,1661.2,1661.0,14.42763402]
[1693502933351,0.0929799,1661.2,1661.0,16.54463402]
[1693502933548,0.0929799,1661.2,1661.1,9.51016]
[1693502934103,0.0929799,1661.2,1661.1,0.48]
[1693502934589,0.0929799,1661.2,1661.0,0.48]
[1693502934764,0.0929799,1661.2,1661.0,1.3733]
[1693502937792,0.0929799,1661.2,1661.0,0.48]
[1693502944576,0.0929799,1661.2,1661.0,5.5247433]
[1693502945075,0.0429799,1661.2,1661.0,5.5247433]
[1693502945408,0.0429799,1661.2,1661.0,11.8607433]
[1693502945629,0.0429799,1661.2,1661.1,11.3807433]
[1693502945796,0.103,1661.4,1661.2,0.0429799]
[1693502945990,0.101,1661.4,1661.3,2.9277433]
[1693502946193,0.101,1661.4,1661.3,5.5247433]
[1693502946400,0.101,1661.4,1661.3,16.35111562]
[1693502947915,0.101,1661.4,1661.3,16.59212062]
[1693502950211,0.04829661,1661.5,1661.3,16.59212062]
[1693502950508,0.04829661,1661.5,1661.4,9.336]
[1693502950713,0.04829661,1661.5,1661.4,12.7437433]
[1693502950907,0.002,1661.7,1661.4,14.28242133]
[1693502951074,0.002,1661.8,1661.5,0.48]
[1693502952410,0.002,1661.8,1661.6,1.511]
[1693502952632,2.3014,1661.9,1661.7,0.48]
[1693502952909,2.2994,1661.9,1661.7,0.48]
[1693502953575,2.9212949,1661.9,1661.6,1.511]
[1693502953793,2.9232949,1661.9,1661.4,4.511]
[1693502953991,0.002,1661.8,1661.5,0.48]
[1693502956990,0.002,1661.8,1661.4,1.511]
[1693502957316,0.002,1661.8,1661.3,5.24757442]
[1693502957509,0.002,1661.8,1661.4,5.44550074]
[1693502957705,0.002,1661.8,1661.4,5.44350074]
[1693502958218,0.002,1661.8,1661.3,3.73657442]
[1693502958402,0.002,1661.8,1661.4,0.002]
[1693502960529,0.002,1661.8,1661.4,1.993]
[1693502960732,0.002,1661.8,1661.4,1.991]
[1693502961402,0.002,1661.8,1661.4,11.2547433]
[1693502961606,0.002,1661.8,1661.5,2.63647433]
[1693502961804,0.002,1661.8,1661.6,0.48]
[1693502962041,2.3014,1661.9,1661.6,0.48]
[1693502962722,2.3014,1661.9,1661.6,1.991]
[1693502963130,2.3014,1661.9,1661.6,2.93624743]
[1693502963739,2.3014,1661.9,1661.6,1.991]
[1693502965250,2.3014,1661.9,1661.6,15.53216]
[1693502969418,2.3014,1661.9,1661.6,18.4599033]
[1693502969624,2.3014,1661.9,1661.7,1.511]
[1693502969854,2.2994,1661.9,1661.8,9.02634]
[1693502970186,0.101,1661.9,1661.8,9.02634]
[1693502970751,0.101,1661.9,1661.8,11.891318]
[1693502971150,0.101,1661.9,1661.8,10.380318]
[1693502971570,0.101,1661.9,1661.8,9.02634]
[1693502972068,0.101,1661.9,1661.8,15.53051]
[1693502972252,0.101,1661.9,1661.8,18.4582533]
[1693502973268,0.101,1661.9,1661.8,4.99317]
[1693502973453,0.101,1661.9,1661.8,0.48]
[1693502973657,0.101,1661.9,1661.7,9.0266]
[1693502974034,0.101,1661.9,1661.7,4.51329]
[1693502976064,0.101,1661.9,1661.7,6.02429]
[1693502976277,0.101,1661.9,1661.7,12.042884]
[1693502976452,0.101,1661.9,1661.8,1.991]
[1693502976636,0.101,1661.9,1661.8,11.01734]
[1693502978468,0.101,1661.9,1661.8,24.7942533]
[1693502979939,0.101,1661.9,1661.8,6.50417]
[1693502980139,0.101,1661.9,1661.8,4.99317]
[1693502983333,0.101,1661.9,1661.8,4.51317]
[1693502983540,0.101,1661.9,1661.7,6.02425]
[1693502983541,0.101,1661.9,1661.7,4.51325]
[1693502987345,0.101,1661.9,1661.7,21.3065933]
[1693502987553,0.101,1661.9,1661.8,0.48]
[1693502987752,0.101,1661.9,1661.8,4.51317]
[1693502987980,0.101,1661.9,1661.7,9.02653]
[1693502988279,0.101,1661.9,1661.7,4.51325]
[1693502988478,0.101,1661.9,1661.8,0.48]
[1693502989057,0.101,1661.9,1661.7,9.02657]
[1693502989258,0.101,1661.9,1661.8,4.51317]
[1693502991365,0.101,1661.9,1661.8,4.99317]
[1693502992296,0.101,1661.9,1661.8,4.51317]
[1693502992992,1.03857893,1661.9,1661.8,4.51317]
[1693502993173,0.101,1661.9,1661.8,4.51317]
[1693502993690,0.101,1661.9,1661.8,9.50634]
[1693502993895,0.101,1661.9,1661.8,11.692999]
[1693502994595,0.101,1661.9,1661.8,16.206169]
[1693502997317,0.101,1661.9,1661.8,25.4699123]
[1693502999010,0.101,1661.9,1661.8,19.1339123]
[1693502999337,1.03857893,1661.9,1661.8,9.50634]
[1693502999994,1.03857893,1661.9,1661.8,9.02634]
[1693503002222,1.03857893,1661.9,1661.6,1.511]
[1693503002223,1.03857893,1661.9,1661.6,6.02464]
[1693503002524,2.29068417,1661.9,1661.6,4.51359]
[1693503002713,3.91485123,1661.9,1661.6,4.51359]
[1693503003606,2.18768417,1661.8,1661.5,9.02773]
[1693503003926,2.18768417,1661.8,1661.5,4.51386]
[1693503003927,0.93757893,1661.7,1661.5,4.51386]
[1693503005903,0.93757893,1661.7,1661.5,9.02785]
[1693503006103,0.93757893,1661.7,1661.6,9.2637433]
[1693503006310,1.04057893,1661.9,1661.6,17.33271833]
[1693503006608,0.93757893,1661.8,1661.6,13.54116]
[1693503007292,0.93757893,1661.8,1661.7,9.2637433]
[1693503007493,0.93757893,1661.8,1661.7,4.99345]
[1693503007892,0.93757893,1661.8,1661.7,4.51345]
[1693503009431,2.18768417,1661.8,1661.7,4.51345]
[1693503010904,2.18768417,1661.8,1661.7,9.0269]
[1693503011814,0.93757893,1661.8,1661.7,9.0269]
[1693503012303,2.18768417,1661.8,1661.7,9.0269]
[1693503012635,2.18768417,1661.8,1661.7,4.51345]
[1693503012828,1.25010524,1661.8,1661.6,9.02708]
[1693503013133,0.94076468,1661.7,1661.6,9.02708]
[1693503013316,0.94076468,1661.7,1661.6,13.9400263]
[1693503013526,2.19086992,1661.8,1661.6,11.012283]
[1693503013710,0.94076468,1661.7,1661.6,9.50708]
[1693503013906,0.94076468,1661.7,1661.5,9.02779]
[1693503014232,3.72056468,1661.7,1661.5,9.02779]
[1693503015250,0.94076468,1661.6,1661.3,0.49556942]
[1693503015415,6.85443467,1661.6,1661.3,0.49556942]
[1693503015613,0.94076468,1661.5,1661.3,0.002]
[1693503015813,0.94076468,1661.5,1661.3,4.51441]
[1693503016337,5.45478468,1661.5,1661.2,9.03135]
[1693503016906,5.45478468,1661.5,1661.2,4.51666]
[1693503017540,0.94076468,1661.5,1661.3,0.48]
[1693503017725,0.94076468,1661.5,1661.3,4.9944]
[1693503017945,5.45477468,1661.5,1661.3,0.48]
[1693503018168,5.45477468,1661.5,1661.2,4.51666]
[1693503018460,5.45477468,1661.5,1661.2,10.1341933]
[1693503018461,0.94076468,1661.5,1661.2,10.1341933]
[1693503018662,0.94076468,1661.5,1661.3,0.48]
[1693503018939,0.94076468,1661.5,1661.4,4.51426]
[1693503019438,0.94076468,1661.6,1661.4,9.50852]
[1693503019636,0.94076468,1661.6,1661.4,9.02852]
[1693503019941,0.94076468,1661.6,1661.4,4.51426]
[1693503021234,6.02096468,1661.7,1661.4,9.02852]
[1693503021437,1.04236497,1661.9,1661.6,13.7747433]
[1693503021642,1.04236497,1661.9,1661.8,7.847]
[1693503021643,0.103,1661.9,1661.8,7.847]
[1693503021839,0.101,1661.9,1661.8,27.3142533]
[1693503022008,0.101,1661.9,1661.8,27.7942533]
[1693503022205,0.101,1661.9,1661.8,20.74099005]
[1693503023438,0.101,1661.9,1661.8,16.22782005]
[1693503024514,0.101,1661.9,1661.8,20.74099005]
[1693503024720,0.101,1661.9,1661.8,16.22782005]
[1693503024916,0.101,1661.9,1661.8,20.74099005]
[1693503025130,0.101,1661.9,1661.8,19.55397505]
[1693503026536,0.101,1661.9,1661.6,6.336]
[1693503026537,0.101,1661.9,1661.7,4.51331]
[1693503026941,0.101,1661.9,1661.7,9.02676]
[1693503027243,4.61394,1661.9,1661.6,4.51357]
[1693503027406,0.103,1661.9,1661.7,0.48]
[1693503027615,0.103,1661.9,1661.8,4.51317]
[1693503027616,0.101,1661.9,1661.8,4.51317]
[1693503027916,9.93206749,1661.9,1661.5,6.02485]
[1693503028105,0.002,1661.8,1661.6,4.99369]
[1693503028313,2.7373,1661.8,1661.6,9.50741]
[1693503028918,2.7373,1661.8,1661.6,4.99369]
[1693503029607,2.7373,1661.8,1661.6,4.51369]
[1693503029804,7.2505,1661.8,1661.5,6.82384602]
[1693503030008,7.25051,1661.8,1661.6,0.48]
[1693503030518,7.25051,1661.8,1661.5,11.02652602]
[1693503031347,2.7373,1661.8,1661.5,11.02652602]
[1693503031536,2.7373,1661.8,1661.6,9.50735]
[1693503032335,2.7373,1661.8,1661.6,20.3730949]
[1693503032523,0.103,1661.9,1661.7,1.511]
[1693503032725,0.103,1661.9,1661.8,4.99317]
[1693503032726,0.101,1661.9,1661.8,4.99317]
[1693503033146,0.101,1661.9,1661.8,9.50634]
[1693503033364,0.101,1661.9,1661.8,15.53051]
[1693503033548,0.101,1661.9,1661.8,16.95755875]
[1693503033921,0.101,1661.9,1661.8,19.88530205]
[1693503034116,0.101,1661.9,1661.8,24.39847205]
[1693503034555,0.101,1661.9,1661.8,19.88530205]
[1693503035759,0.101,1661.9,1661.8,26.22130205]
[1693503035968,0.101,1661.9,1661.8,21.70813205]
[1693503036120,0.101,1661.9,1661.8,26.22130205]
[1693503036516,0.101,1661.9,1661.8,21.70813205]
[1693503036721,0.101,1661.9,1661.8,26.22130205]
[1693503036953,0.101,1661.9,1661.8,21.70813205]
[1693503037153,0.101,1661.9,1661.8,26.22130205]
[1693503037357,0.101,1661.9,1661.8,27.40831705]
[1693503037522,0.101,1661.9,1661.8,30.40831705]
[1693503039258,0.101,1661.9,1661.8,24.07231705]
[1693503040263,0.101,1661.9,1661.8,30.40831705]
[1693503049334,0.101,1661.9,1661.8,24.07231705]
[1693503049950,0.101,1661.9,1661.8,30.40831705]
[1693503050151,0.101,1661.9,1661.8,24.07231705]
[1693503050561,0.101,1661.9,1661.8,30.40831705]
[1693503051960,0.101,1661.9,1661.8,24.07231705]
[1693503052948,0.101,1661.9,1661.8,30.40831705]
[1693503055396,0.101,1661.9,1661.8,24.07231705]
[1693503056483,0.101,1661.9,1661.8,30.40831705]
[1693503056981,0.101,1661.9,1661.8,21.14457375]
[1693503057278,0.101,1661.9,1661.8,24.07231705]
[1693503058169,0.101,1661.9,1661.8,30.40831705]
[1693503059243,0.101,1661.9,1661.8,19.55914705]
[1693503059447,0.101,1661.9,1661.8,30.40831705]
[1693503065405,0.101,1661.9,1661.8,31.01415172]
[1693503067081,0.101,1661.9,1661.8,30.40831705]
[1693503067387,0.101,1661.9,1661.8,17.6520983]
[1693503067589,0.101,1661.9,1661.8,14.724355]
[1693503067789,0.101,1661.9,1661.8,13.53734]
[1693503067956,0.101,1661.9,1661.8,9.02417]
[1693503068158,0.101,1661.9,1661.8,13.53734]
[1693503068359,0.101,1661.9,1661.8,18.05051]
[1693503069594,0.101,1661.9,1661.8,18.53051]
[1693503071013,0.101,1661.9,1661.8,12.50634]
[1693503071495,0.101,1661.9,1661.8,9.50634]
[1693503072490,0.101,1661.9,1661.8,14.01951]
[1693503072698,0.101,1661.9,1661.8,9.50634]
[1693503073507,0.101,1661.9,1661.8,11.01734]
[1693503073874,0.101,1661.9,1661.8,4.99317]
[1693503075071,0.101,1661.9,1661.8,9.50634]
[1693503076714,0.101,1661.9,1661.8,4.99317]
[1693503077712,0.101,1661.9,1661.8,9.50634]